[Event "GrandPrix_30.05"]
[Site "Chess.com"]
[Date "2020.05.30"]
[Round "8"]
[White "switlave"]
[Black "Zubrrr"]
[Result "1-0"]
[WhiteElo "2334"]
[BlackElo "2490"]
[TimeControl "600+2"]
[EndTime "11:56:24 PDT"]
[Termination "switlave won by resignation"]

1. d4 {[%clk 0:10:01.9]} 1... f5 {[%clk 0:09:59.9]} 2. Bf4 {[%clk 0:09:58.2]}
2... Nf6 {[%clk 0:10:00]} 3. e3 {[%clk 0:09:58.4]} 3... d6 {[%clk 0:09:59.7]} 4.
Nf3 {[%clk 0:09:54.7]} 4... g6 {[%clk 0:09:49.4]} 5. h3 {[%clk 0:09:52.6]} 5...
Bg7 {[%clk 0:09:49.8]} 6. Bc4 {[%clk 0:09:48]} 6... e6 {[%clk 0:09:49.2]} 7. g4
{[%clk 0:09:48.7]} 7... Qe7 {[%clk 0:08:22.1]} 8. Nc3 {[%clk 0:08:14.4]} 8...
Nc6 {[%clk 0:06:48.4]} 9. gxf5 {[%clk 0:08:02.2]} 9... exf5 {[%clk 0:06:46.9]}
10. Qe2 {[%clk 0:07:44.2]} 10... Bd7 {[%clk 0:06:38.4]} 11. O-O-O {[%clk
0:07:18.6]} 11... O-O-O {[%clk 0:06:37]} 12. h4 {[%clk 0:07:17.7]} 12... Na5
{[%clk 0:05:54.4]} 13. Bb5 {[%clk 0:06:42.3]} 13... Qf7 {[%clk 0:02:43.6]} 14.
d5 {[%clk 0:05:34.3]} 14... Nh5 {[%clk 0:01:58.4]} 15. Ng5 {[%clk 0:05:05.8]}
15... Qe7 {[%clk 0:01:09.3]} 16. Bxd7+ {[%clk 0:04:42.3]} 16... Qxd7 {[%clk
0:01:07.5]} 17. Qd3 {[%clk 0:04:16.6]} 17... Nxf4 {[%clk 0:01:06.7]} 18. exf4
{[%clk 0:04:16.6]} 18... c5 {[%clk 0:00:20.2]} 19. Rde1 {[%clk 0:03:22.7]} 19...
a6 {[%clk 0:00:19.6]} 20. Ne6 {[%clk 0:02:37.3]} 20... Bf6 {[%clk 0:00:13.1]}
21. Nxd8 {[%clk 0:02:35.5]} 21... Qxd8 {[%clk 0:00:13.2]} 22. h5 {[%clk
0:02:35]} 22... b5 {[%clk 0:00:14.1]} 23. Nxb5 {[%clk 0:02:21.6]} 23... axb5
{[%clk 0:00:11.6]} 24. Qxb5 {[%clk 0:02:22.4]} 24... Rf8 {[%clk 0:00:03.6]} 25.
hxg6 {[%clk 0:02:21.7]} 25... hxg6 {[%clk 0:00:05.5]} 26. Rh7 {[%clk 0:02:15.5]}
1-0

[Event "GrandPrix_30.05"]
[Site "Chess.com"]
[Date "2020.05.30"]
[Round "8"]
[White "IwkooO"]
[Black "wnstop"]
[Result "0-1"]
[WhiteElo "2290"]
[BlackElo "2270"]
[TimeControl "600+2"]
[EndTime "11:56:42 PDT"]
[Termination "wnstop won by resignation"]

1. e4 {[%clk 0:10:01.9]} 1... c5 {[%clk 0:09:47.2]} 2. Nf3 {[%clk 0:09:54.1]}
2... Nc6 {[%clk 0:09:47.3]} 3. d4 {[%clk 0:09:55.3]} 3... cxd4 {[%clk
0:09:49.2]} 4. Nxd4 {[%clk 0:09:57.2]} 4... e5 {[%clk 0:09:50.5]} 5. Nb5 {[%clk
0:09:58.5]} 5... d6 {[%clk 0:09:51.6]} 6. c4 {[%clk 0:09:59.8]} 6... Be7 {[%clk
0:09:52]} 7. N1c3 {[%clk 0:10:00]} 7... a6 {[%clk 0:09:53.3]} 8. Na3 {[%clk
0:10:01.6]} 8... Be6 {[%clk 0:09:54.8]} 9. Nc2 {[%clk 0:10:01.5]} 9... Rc8
{[%clk 0:09:50.2]} 10. Be2 {[%clk 0:10:02.1]} 10... Nf6 {[%clk 0:09:39.9]} 11.
O-O {[%clk 0:09:55.4]} 11... Na5 {[%clk 0:09:06.8]} 12. b3 {[%clk 0:08:44.4]}
12... b5 {[%clk 0:08:47.4]} 13. Ne3 {[%clk 0:08:33.7]} 13... bxc4 {[%clk
0:08:11.3]} 14. bxc4 {[%clk 0:08:32.7]} 14... O-O {[%clk 0:07:45.4]} 15. Qa4
{[%clk 0:08:32.2]} 15... Bd7 {[%clk 0:07:10.4]} 16. Qc2 {[%clk 0:08:24.8]} 16...
Nc6 {[%clk 0:07:10.8]} 17. Bd3 {[%clk 0:08:03.1]} 17... Nd4 {[%clk 0:06:56]} 18.
Qd2 {[%clk 0:08:04.2]} 18... Bc6 {[%clk 0:06:38.2]} 19. Bb2 {[%clk 0:08:00.6]}
19... Nd7 {[%clk 0:06:35]} 20. Ncd5 {[%clk 0:07:58]} 20... Bg5 {[%clk
0:06:21.6]} 21. Qe1 {[%clk 0:07:48.9]} 21... Nc5 {[%clk 0:06:19.2]} 22. Rd1
{[%clk 0:07:44.2]} 22... Rb8 {[%clk 0:06:08.2]} 23. Bxd4 {[%clk 0:07:42.7]}
23... exd4 {[%clk 0:06:07.7]} 24. Nf5 {[%clk 0:07:44.3]} 24... Bxd5 {[%clk
0:05:37.5]} 25. cxd5 {[%clk 0:07:38.4]} 25... Bf6 {[%clk 0:05:36]} 26. Bc4
{[%clk 0:07:39.6]} 26... Re8 {[%clk 0:05:33.9]} 27. f3 {[%clk 0:07:28.7]} 27...
Na4 {[%clk 0:04:42.9]} 28. Nxd4 {[%clk 0:06:27.9]} 28... Nb2 {[%clk 0:03:18.4]}
29. Nc6 {[%clk 0:05:31.2]} 29... Qb6+ {[%clk 0:03:18.1]} 30. Kh1 {[%clk
0:05:32.6]} 30... Nxc4 {[%clk 0:03:16.4]} 31. Nxb8 {[%clk 0:05:32]} 31... Qxb8
{[%clk 0:03:11.9]} 32. Rb1 {[%clk 0:05:30.5]} 32... Qa7 {[%clk 0:03:08.8]} 33.
Qb4 {[%clk 0:05:31.9]} 33... Ne3 {[%clk 0:02:57.9]} 34. Rfc1 {[%clk 0:05:32.3]}
34... Qe7 {[%clk 0:02:13.5]} 35. Qb6 {[%clk 0:05:23.1]} 35... Bg5 {[%clk
0:02:11.5]} 36. Rc3 {[%clk 0:05:11.4]} 36... f5 {[%clk 0:01:20.5]} 37. Rxe3
{[%clk 0:05:01]} 37... Bxe3 {[%clk 0:01:20]} 38. Qxe3 {[%clk 0:05:02.9]} 38...
fxe4 {[%clk 0:01:21.3]} 39. Re1 {[%clk 0:05:01.9]} 39... exf3 {[%clk 0:00:50.8]}
40. Qxe7 {[%clk 0:03:54.6]} 40... Rxe7 {[%clk 0:00:50.2]} 41. Rf1 {[%clk
0:03:50.4]} 41... f2 {[%clk 0:00:15.6]} 42. g3 {[%clk 0:03:51.4]} 42... Re1
{[%clk 0:00:17]} 43. Kg2 {[%clk 0:03:52.5]} 43... Rxf1 {[%clk 0:00:18.6]} 44.
Kxf1 {[%clk 0:03:53.9]} 44... Kf7 {[%clk 0:00:20.2]} 45. Kxf2 {[%clk 0:03:55.8]}
45... Kf6 {[%clk 0:00:21.9]} 46. Kf3 {[%clk 0:03:56.1]} 46... Ke5 {[%clk
0:00:23.2]} 47. Ke3 {[%clk 0:03:58]} 47... Kxd5 {[%clk 0:00:24.5]} 48. Kd3
{[%clk 0:03:59.9]} 48... Ke5 {[%clk 0:00:22]} 49. Ke3 {[%clk 0:03:59.8]} 49...
d5 {[%clk 0:00:22.8]} 50. Kd3 {[%clk 0:04:01]} 50... d4 {[%clk 0:00:23.6]} 51.
h3 {[%clk 0:04:02.2]} 51... Kd5 {[%clk 0:00:24.9]} 52. a3 {[%clk 0:04:01.9]}
52... h5 {[%clk 0:00:15.7]} 53. g4 {[%clk 0:03:54.6]} 53... hxg4 {[%clk
0:00:14.5]} 54. hxg4 {[%clk 0:03:56.5]} 54... g5 {[%clk 0:00:15.9]} 0-1

[Event "GrandPrix_30.05"]
[Site "Chess.com"]
[Date "2020.05.30"]
[Round "8"]
[White "abraham1982"]
[Black "MAS_1704"]
[Result "1-0"]
[WhiteElo "2176"]
[BlackElo "2061"]
[TimeControl "600+2"]
[EndTime "11:56:45 PDT"]
[Termination "abraham1982 won by checkmate"]

1. e4 {[%clk 0:09:59.9]} 1... g6 {[%clk 0:09:58.6]} 2. d4 {[%clk 0:09:58.5]}
2... Bg7 {[%clk 0:09:59]} 3. c4 {[%clk 0:09:56.9]} 3... d6 {[%clk 0:09:56.9]} 4.
Nc3 {[%clk 0:09:55.8]} 4... e5 {[%clk 0:09:50.6]} 5. Nf3 {[%clk 0:09:52.8]} 5...
Nc6 {[%clk 0:09:47.7]} 6. Be3 {[%clk 0:09:47.8]} 6... Bg4 {[%clk 0:09:40.6]} 7.
d5 {[%clk 0:09:46.1]} 7... Nce7 {[%clk 0:09:03.9]} 8. h3 {[%clk 0:09:27.1]} 8...
Bxf3 {[%clk 0:08:59.6]} 9. gxf3 {[%clk 0:09:26.7]} 9... f5 {[%clk 0:08:50]} 10.
c5 {[%clk 0:08:21.3]} 10... f4 {[%clk 0:08:40.3]} 11. cxd6 {[%clk 0:08:18.3]}
11... fxe3 {[%clk 0:08:36.9]} 12. dxe7 {[%clk 0:08:16.5]} 12... exf2+ {[%clk
0:08:36.6]} 13. Kxf2 {[%clk 0:08:16.4]} 13... Nxe7 {[%clk 0:08:22.2]} 14. Qa4+
{[%clk 0:07:58.9]} 14... c6 {[%clk 0:08:17.2]} 15. Rd1 {[%clk 0:07:54.2]} 15...
Qb6+ {[%clk 0:08:15.7]} 16. Kg3 {[%clk 0:07:46.3]} 16... Bh6 {[%clk 0:08:10.3]}
17. Qb3 {[%clk 0:07:05.5]} 17... Bf4+ {[%clk 0:07:21.3]} 18. Kg2 {[%clk
0:07:01.2]} 18... g5 {[%clk 0:07:21.5]} 19. dxc6 {[%clk 0:06:48.9]} 19... Qxb3
{[%clk 0:07:12.4]} 20. axb3 {[%clk 0:06:45.3]} 20... Nxc6 {[%clk 0:07:11.3]} 21.
Bb5 {[%clk 0:06:42.5]} 21... a6 {[%clk 0:07:06.6]} 22. Bxc6+ {[%clk 0:06:40.7]}
22... bxc6 {[%clk 0:07:07.1]} 23. Rd6 {[%clk 0:06:37.5]} 23... Rb8 {[%clk
0:07:04.4]} 24. Rxc6 {[%clk 0:06:30.9]} 24... O-O {[%clk 0:06:59.8]} 25. Rd1
{[%clk 0:06:16.3]} 25... Rxb3 {[%clk 0:06:58.4]} 26. Na4 {[%clk 0:06:15.2]}
26... Rb4 {[%clk 0:06:23.6]} 27. Rxa6 {[%clk 0:06:10.4]} 27... Be3 {[%clk
0:06:14]} 28. Rd7 {[%clk 0:05:56.2]} 28... Rf7 {[%clk 0:05:58.2]} 29. Rxf7
{[%clk 0:04:37.1]} 29... Kxf7 {[%clk 0:05:58.3]} 30. Kg3 {[%clk 0:04:36.2]}
30... h5 {[%clk 0:05:57.2]} 31. h4 {[%clk 0:04:34.7]} 31... Bf4+ {[%clk
0:05:38.1]} 32. Kh3 {[%clk 0:04:27.9]} 32... Rb3 {[%clk 0:05:38.6]} 33. hxg5
{[%clk 0:04:19.9]} 33... Bxg5 {[%clk 0:05:26.1]} 34. Kg3 {[%clk 0:04:01.8]}
34... Bf4+ {[%clk 0:05:24.2]} 35. Kh4 {[%clk 0:03:59.8]} 35... Rxf3 {[%clk
0:05:22.2]} 36. Kxh5 {[%clk 0:03:59.9]} 36... Rb3 {[%clk 0:05:07]} 37. Rb6
{[%clk 0:03:38.4]} 37... Rh3+ {[%clk 0:04:48.1]} 38. Kg4 {[%clk 0:03:35.7]}
38... Rg3+ {[%clk 0:04:47.6]} 39. Kh4 {[%clk 0:03:34.6]} 39... Re3 {[%clk
0:04:38]} 40. Nc3 {[%clk 0:03:29.7]} 40... Bg3+ {[%clk 0:04:33]} 41. Kg4 {[%clk
0:03:21.9]} 41... Be1 {[%clk 0:04:32.1]} 42. Nd5 {[%clk 0:03:07.5]} 42... Rxe4+
{[%clk 0:04:28.3]} 43. Kf5 {[%clk 0:03:07.2]} 43... Rd4 {[%clk 0:04:07.8]} 44.
Rb7+ {[%clk 0:03:02.3]} 44... Ke8 {[%clk 0:03:53]} 45. Ke6 {[%clk 0:02:43.9]}
45... Bh4 {[%clk 0:03:48]} 46. Rb8+ {[%clk 0:02:21.5]} 46... Bd8 {[%clk
0:03:47.5]} 47. Nc7+ {[%clk 0:02:16.9]} 47... Kf8 {[%clk 0:03:46.2]} 48. Kxe5
{[%clk 0:02:16.3]} 48... Rd2 {[%clk 0:03:19.2]} 49. Rxd8+ {[%clk 0:02:09.5]}
49... Rxd8 {[%clk 0:03:16.9]} 50. Ne6+ {[%clk 0:02:06.7]} 50... Ke7 {[%clk
0:03:17.2]} 51. Nxd8 {[%clk 0:02:06.8]} 51... Kxd8 {[%clk 0:03:17.5]} 52. Kd6
{[%clk 0:02:08.1]} 52... Kc8 {[%clk 0:03:17.7]} 53. Kc6 {[%clk 0:02:09]} 53...
Kb8 {[%clk 0:03:17.7]} 54. Kb6 {[%clk 0:02:09.7]} 54... Kc8 {[%clk 0:03:17.6]}
55. b4 {[%clk 0:01:43.5]} 55... Kb8 {[%clk 0:03:17.5]} 56. b5 {[%clk 0:01:42.8]}
56... Ka8 {[%clk 0:03:17.7]} 57. Kc7 {[%clk 0:01:42.5]} 57... Ka7 {[%clk
0:03:18]} 58. b6+ {[%clk 0:01:42.7]} 58... Ka8 {[%clk 0:03:17.1]} 59. b7+ {[%clk
0:01:42.9]} 59... Ka7 {[%clk 0:03:17.7]} 60. b8=Q+ {[%clk 0:01:41.4]} 60... Ka6
{[%clk 0:03:18.1]} 61. Qb6# {[%clk 0:01:41.7]} 1-0

[Event "GrandPrix_30.05"]
[Site "Chess.com"]
[Date "2020.05.30"]
[Round "8"]
[White "Pash2015"]
[Black "MikaelyanArman1996"]
[Result "1-0"]
[WhiteElo "2254"]
[BlackElo "2346"]
[TimeControl "600+2"]
[EndTime "11:56:48 PDT"]
[Termination "Pash2015 won by resignation"]

1. e4 {[%clk 0:10:01.9]} 1... c5 {[%clk 0:09:58.9]} 2. d4 {[%clk 0:10:03.3]}
2... cxd4 {[%clk 0:09:59.7]} 3. Nf3 {[%clk 0:10:04.9]} 3... Nc6 {[%clk
0:09:51.1]} 4. Bc4 {[%clk 0:10:05.8]} 4... Nf6 {[%clk 0:09:27.4]} 5. Qe2 {[%clk
0:10:03.1]} 5... d6 {[%clk 0:08:59.2]} 6. h3 {[%clk 0:09:57.8]} 6... g6 {[%clk
0:08:20.5]} 7. O-O {[%clk 0:09:55.2]} 7... Bg7 {[%clk 0:08:21.4]} 8. Rd1 {[%clk
0:09:50.6]} 8... e5 {[%clk 0:06:47.4]} 9. c3 {[%clk 0:09:43.8]} 9... O-O {[%clk
0:05:57.3]} 10. cxd4 {[%clk 0:09:35.3]} 10... exd4 {[%clk 0:05:58.4]} 11. Nxd4
{[%clk 0:09:35.5]} 11... Re8 {[%clk 0:05:52.4]} 12. Nc3 {[%clk 0:09:30.7]} 12...
Nxe4 {[%clk 0:04:45.3]} 13. Nxc6 {[%clk 0:08:43.7]} 13... Nxc3 {[%clk
0:04:40.1]} 14. Bxf7+ {[%clk 0:08:38]} 14... Kh8 {[%clk 0:03:43.9]} 15. bxc3
{[%clk 0:08:12.4]} 15... Rxe2 {[%clk 0:03:32.9]} 16. Nxd8 {[%clk 0:08:12.2]}
16... Bf5 {[%clk 0:03:33.9]} 17. Nxb7 {[%clk 0:08:03.6]} 17... Bxc3 {[%clk
0:03:31.3]} 18. Be3 {[%clk 0:07:58.7]} 18... Bxa1 {[%clk 0:03:27.2]} 19. Rxa1
{[%clk 0:08:00.6]} 19... Kg7 {[%clk 0:03:23.9]} 20. Bc4 {[%clk 0:07:59.2]} 20...
Rc2 {[%clk 0:03:24.2]} 21. Nxd6 {[%clk 0:07:50.9]} 21... Bd7 {[%clk 0:03:06]}
22. Bb3 {[%clk 0:07:48.5]} 22... Rc7 {[%clk 0:03:00.8]} 23. Bd4+ {[%clk
0:07:43.6]} 23... Kf8 {[%clk 0:02:59.8]} 24. Ne4 {[%clk 0:07:40.6]} 24... Bf5
{[%clk 0:02:41.1]} 25. Ng5 {[%clk 0:07:38.3]} 25... Rd8 {[%clk 0:02:35.4]} 26.
Be3 {[%clk 0:07:30.2]} 26... Re8 {[%clk 0:02:20.6]} 27. Rd1 {[%clk 0:07:23.3]}
27... h6 {[%clk 0:02:20.2]} 28. Nf3 {[%clk 0:07:20.7]} 28... Kg7 {[%clk
0:02:20.5]} 29. Bd4+ {[%clk 0:07:16.5]} 29... Kh7 {[%clk 0:02:20.5]} 30. Bb2
{[%clk 0:07:10.4]} 30... Rd7 {[%clk 0:02:17.4]} 31. Rc1 {[%clk 0:07:07.7]} 31...
Rde7 {[%clk 0:02:11.7]} 32. g4 {[%clk 0:07:02.3]} 32... Be4 {[%clk 0:02:06.2]}
33. Kg2 {[%clk 0:06:56.4]} 33... Rf8 {[%clk 0:01:41.9]} 34. Rc3 {[%clk
0:06:53.8]} 34... Rd7 {[%clk 0:01:25.2]} 35. Kg3 {[%clk 0:06:52]} 35... a5
{[%clk 0:01:09]} 36. Bc1 {[%clk 0:06:34.5]} 36... g5 {[%clk 0:00:39]} 37. Ne5
{[%clk 0:06:17.8]} 37... Rb7 {[%clk 0:00:35.9]} 38. Be3 {[%clk 0:06:15.2]} 38...
Rd8 {[%clk 0:00:24.8]} 39. Bc2 {[%clk 0:06:10.4]} 39... Bxc2 {[%clk 0:00:25.1]}
40. Rxc2 {[%clk 0:06:12.3]} 40... Rd5 {[%clk 0:00:22.2]} 41. Nf3 {[%clk
0:06:12.7]} 41... a4 {[%clk 0:00:20.5]} 42. Rc6 {[%clk 0:06:10.1]} 42... Rb2
{[%clk 0:00:17.5]} 43. Rc7+ {[%clk 0:06:07.3]} 43... Kg8 {[%clk 0:00:17.6]} 44.
a3 {[%clk 0:06:02.7]} 44... Rb3 {[%clk 0:00:18.1]} 45. Ra7 {[%clk 0:05:55.7]}
45... Rxa3 {[%clk 0:00:18.1]} 46. Kg2 {[%clk 0:05:56.5]} 46... Ra2 {[%clk
0:00:11]} 47. Nd4 {[%clk 0:05:53.6]} 47... a3 {[%clk 0:00:11.9]} 48. Nf5 {[%clk
0:05:51.7]} 48... Kf8 {[%clk 0:00:13.2]} 49. Ra8+ {[%clk 0:05:44.5]} 49... Kf7
{[%clk 0:00:13.8]} 50. Nxh6+ {[%clk 0:05:44.5]} 50... Ke6 {[%clk 0:00:15.1]} 51.
Nf5 {[%clk 0:05:42.6]} 51... Ra1 {[%clk 0:00:15.6]} 52. Re8+ {[%clk 0:05:35.5]}
52... Kd7 {[%clk 0:00:15.4]} 53. Ra8 {[%clk 0:05:36]} 53... Rdd1 {[%clk
0:00:08.5]} 54. Bxg5 {[%clk 0:05:33.7]} 54... Rg1+ {[%clk 0:00:07.7]} 55. Kf3
{[%clk 0:05:31.3]} 55... Rh1 {[%clk 0:00:09.1]} 56. h4 {[%clk 0:05:29.1]} 56...
Kc6 {[%clk 0:00:04.8]} 57. h5 {[%clk 0:05:23.6]} 57... Kb7 {[%clk 0:00:05.3]}
58. Ra4 {[%clk 0:05:21.3]} 58... Rh2 {[%clk 0:00:06.7]} 59. h6 {[%clk
0:05:17.5]} 59... a2 {[%clk 0:00:07.5]} 60. Bh4 {[%clk 0:05:14.3]} 60... Rah1
{[%clk 0:00:04.7]} 61. Rxa2 {[%clk 0:05:11.1]} 61... Kc6 {[%clk 0:00:05.3]} 62.
Kg3 {[%clk 0:05:04.2]} 62... Rh3+ {[%clk 0:00:06.2]} 63. Kf4 {[%clk 0:05:04.4]}
63... Kd5 {[%clk 0:00:06.8]} 64. h7 {[%clk 0:04:58.2]} 64... Rxh4 {[%clk
0:00:07.5]} 65. Nxh4 {[%clk 0:04:54.7]} 65... Rxh4 {[%clk 0:00:09.4]} 66. Ra5+
{[%clk 0:04:52.3]} 66... Ke6 {[%clk 0:00:09.9]} 67. Rh5 {[%clk 0:04:54.2]} 67...
Rxh5 {[%clk 0:00:10.8]} 68. gxh5 {[%clk 0:04:55.5]} 1-0

[Event "GrandPrix_30.05"]
[Site "Chess.com"]
[Date "2020.05.30"]
[Round "8"]
[White "Haykos"]
[Black "Kiril1965"]
[Result "0-1"]
[WhiteElo "2263"]
[BlackElo "2475"]
[TimeControl "600+2"]
[EndTime "11:56:49 PDT"]
[Termination "Kiril1965 won on time"]

1. e4 {[%clk 0:10:01.9]} 1... e5 {[%clk 0:09:47.1]} 2. Nf3 {[%clk 0:09:56]} 2...
Nc6 {[%clk 0:09:46.3]} 3. Bc4 {[%clk 0:09:57.1]} 3... Bc5 {[%clk 0:09:44.4]} 4.
c3 {[%clk 0:09:57.4]} 4... Nf6 {[%clk 0:09:39.9]} 5. O-O {[%clk 0:09:44.2]} 5...
Nxe4 {[%clk 0:09:17.5]} 6. Bd5 {[%clk 0:09:04]} 6... Nf6 {[%clk 0:08:42.8]} 7.
Bxc6 {[%clk 0:08:56.4]} 7... dxc6 {[%clk 0:08:42.3]} 8. Nxe5 {[%clk 0:08:57.7]}
8... Be6 {[%clk 0:08:30.4]} 9. d4 {[%clk 0:08:58.6]} 9... Be7 {[%clk 0:08:29.6]}
10. Nd2 {[%clk 0:08:58.3]} 10... O-O {[%clk 0:08:25.5]} 11. Ndf3 {[%clk
0:08:19.9]} 11... c5 {[%clk 0:08:20.9]} 12. Qe2 {[%clk 0:08:08.3]} 12... Re8
{[%clk 0:08:06.5]} 13. dxc5 {[%clk 0:07:51.2]} 13... Bxc5 {[%clk 0:08:04.5]} 14.
Be3 {[%clk 0:07:52.8]} 14... Bd6 {[%clk 0:07:34.1]} 15. Rfd1 {[%clk 0:07:28.1]}
15... Qc8 {[%clk 0:07:13.5]} 16. Rd4 {[%clk 0:04:31.8]} 16... Bf5 {[%clk
0:07:01.5]} 17. Nc4 {[%clk 0:04:15.3]} 17... Bf8 {[%clk 0:06:55]} 18. Qd2 {[%clk
0:04:04.5]} 18... c5 {[%clk 0:06:32.1]} 19. Nd6 {[%clk 0:03:58.3]} 19... Bxd6
{[%clk 0:06:31.5]} 20. Rxd6 {[%clk 0:03:59.9]} 20... Ne4 {[%clk 0:06:32.2]} 21.
Qd5 {[%clk 0:04:01.5]} 21... Nxd6 {[%clk 0:06:26.1]} 22. Qxd6 {[%clk 0:04:02.2]}
22... b6 {[%clk 0:06:24.1]} 23. Qg3 {[%clk 0:03:20.3]} 23... Qc6 {[%clk
0:06:11]} 24. h4 {[%clk 0:03:15.8]} 24... Qg6 {[%clk 0:05:58.4]} 25. Qh2 {[%clk
0:03:01.1]} 25... h6 {[%clk 0:05:49.4]} 26. h5 {[%clk 0:02:58.9]} 26... Qf6
{[%clk 0:05:41]} 27. Qg3 {[%clk 0:02:52.6]} 27... Rad8 {[%clk 0:05:37.3]} 28. a4
{[%clk 0:02:37.3]} 28... a5 {[%clk 0:05:26.9]} 29. Bf4 {[%clk 0:02:29.2]} 29...
Qc6 {[%clk 0:04:35.3]} 30. Be5 {[%clk 0:01:09.4]} 30... f6 {[%clk 0:04:31.4]}
31. Bf4 {[%clk 0:01:10.5]} 31... Kh7 {[%clk 0:04:22.5]} 32. Nh4 {[%clk 0:01:11]}
32... Rd3 {[%clk 0:04:03.5]} 33. f3 {[%clk 0:01:01.1]} 33... Qd7 {[%clk
0:03:49.2]} 34. Kh2 {[%clk 0:00:58.1]} 34... Re2 {[%clk 0:03:41.3]} 35. b4
{[%clk 0:00:39.7]} 35... Rxc3 {[%clk 0:03:26.2]} 36. bxa5 {[%clk 0:00:40.2]}
36... bxa5 {[%clk 0:03:26.6]} 37. Ng6 {[%clk 0:00:27]} 37... Qe8 {[%clk
0:03:15.5]} 38. Nh4 {[%clk 0:00:03]} 38... Qxh5 {[%clk 0:03:07.9]} 39. Kg1
{[%clk 0:00:04]} 39... Rcc2 {[%clk 0:02:52.1]} 0-1

[Event "GrandPrix_30.05"]
[Site "Chess.com"]
[Date "2020.05.30"]
[Round "8"]
[White "SacrificeGod"]
[Black "NikolaN98"]
[Result "0-1"]
[WhiteElo "2236"]
[BlackElo "2212"]
[TimeControl "600+2"]
[EndTime "11:56:49 PDT"]
[Termination "NikolaN98 won by resignation"]

1. e4 {[%clk 0:10:01.9]} 1... e6 {[%clk 0:09:59.4]} 2. d4 {[%clk 0:10:01.2]}
2... d5 {[%clk 0:10:00.2]} 3. Nd2 {[%clk 0:10:02.4]} 3... Nf6 {[%clk 0:10:00.7]}
4. e5 {[%clk 0:10:03.2]} 4... Nfd7 {[%clk 0:10:01.9]} 5. Bd3 {[%clk 0:10:04.4]}
5... c5 {[%clk 0:10:03.1]} 6. c3 {[%clk 0:10:05.9]} 6... Nc6 {[%clk 0:10:04.7]}
7. Ngf3 {[%clk 0:10:07.2]} 7... Be7 {[%clk 0:10:04.5]} 8. O-O {[%clk 0:10:07.1]}
8... a5 {[%clk 0:10:03.7]} 9. a4 {[%clk 0:09:48.1]} 9... cxd4 {[%clk 0:10:04.4]}
10. cxd4 {[%clk 0:09:47.6]} 10... Nb4 {[%clk 0:10:05.5]} 11. Bb1 {[%clk
0:09:43.8]} 11... b6 {[%clk 0:10:05.5]} 12. Re1 {[%clk 0:09:43.5]} 12... Ba6
{[%clk 0:10:06.4]} 13. Nf1 {[%clk 0:09:43.4]} 13... b5 {[%clk 0:10:07.8]} 14.
Ng3 {[%clk 0:09:32.6]} 14... h5 {[%clk 0:10:07.8]} 15. Ne2 {[%clk 0:09:14.3]}
15... bxa4 {[%clk 0:09:46]} 16. Nf4 {[%clk 0:08:39.3]} 16... Nb6 {[%clk
0:09:33.6]} 17. Nd2 {[%clk 0:07:29.5]} 17... g6 {[%clk 0:09:13.2]} 18. b3 {[%clk
0:06:57.1]} 18... Rc8 {[%clk 0:08:31.3]} 19. bxa4 {[%clk 0:06:33.5]} 19... g5
{[%clk 0:08:17.2]} 20. Ne2 {[%clk 0:04:34.4]} 20... Qc7 {[%clk 0:07:30.7]} 21.
Nb3 {[%clk 0:04:33.6]} 21... Nc2 {[%clk 0:06:26]} 22. Bxc2 {[%clk 0:03:41.1]}
22... Qxc2 {[%clk 0:06:25.1]} 23. Bd2 {[%clk 0:03:19.1]} 23... Qxd1 {[%clk
0:06:01.2]} 24. Raxd1 {[%clk 0:03:18.1]} 24... Nxa4 {[%clk 0:06:00.5]} 25. Ra1
{[%clk 0:02:11.3]} 25... Nb2 {[%clk 0:05:42.8]} 26. Rxa5 {[%clk 0:02:07.6]}
26... Bc4 {[%clk 0:05:38.1]} 27. Nc5 {[%clk 0:01:47.7]} 27... O-O {[%clk
0:05:33.9]} 28. Nd7 {[%clk 0:01:45.6]} 28... Rfd8 {[%clk 0:05:31.4]} 29. Nf6+
{[%clk 0:01:46.5]} 29... Bxf6 {[%clk 0:05:06.9]} 30. exf6 {[%clk 0:01:48.4]}
30... Bxe2 {[%clk 0:04:56]} 31. Rxe2 {[%clk 0:01:47.3]} 31... Rc2 {[%clk
0:04:54]} 32. Ra2 {[%clk 0:01:23.6]} 32... Kh7 {[%clk 0:04:35.8]} 33. Kf1 {[%clk
0:01:08.3]} 33... g4 {[%clk 0:04:11.4]} 34. Bf4 {[%clk 0:00:55]} 34... Rxe2
{[%clk 0:04:02.1]} 35. Kxe2 {[%clk 0:00:56.9]} 35... Nc4 {[%clk 0:04:03.4]} 36.
Ra7 {[%clk 0:00:51.2]} 36... Kg6 {[%clk 0:04:03.5]} 37. Be5 {[%clk 0:00:35.9]}
37... Rf8 {[%clk 0:03:55.9]} 38. f4 {[%clk 0:00:17.7]} 38... gxf3+ {[%clk
0:03:54.4]} 39. Kxf3 {[%clk 0:00:14.6]} 39... Kf5 {[%clk 0:03:53.6]} 40. Bg3
{[%clk 0:00:13.2]} 40... Kxf6 {[%clk 0:03:50.6]} 41. Bh4+ {[%clk 0:00:14.2]}
41... Kg6 {[%clk 0:03:51.3]} 42. h3 {[%clk 0:00:15.7]} 42... Rb8 {[%clk
0:03:50.4]} 43. g4 {[%clk 0:00:15.4]} 43... Rb3+ {[%clk 0:03:50.2]} 44. Kg2
{[%clk 0:00:16.6]} 44... hxg4 {[%clk 0:03:47.6]} 45. hxg4 {[%clk 0:00:17.3]}
45... Ne3+ {[%clk 0:03:48.5]} 46. Kg1 {[%clk 0:00:10.1]} 46... Rb1+ {[%clk
0:03:40.4]} 47. Kf2 {[%clk 0:00:10.5]} 47... Nxg4+ {[%clk 0:03:41.5]} 48. Kg3
{[%clk 0:00:11.8]} 48... Nh6 {[%clk 0:03:42.6]} 49. Bd8 {[%clk 0:00:07.9]} 49...
Nf5+ {[%clk 0:03:42.6]} 50. Kf4 {[%clk 0:00:07.8]} 50... Nxd4 {[%clk 0:03:38.8]}
0-1